{"text_format":"3","workbook":"xlsx","n_sheets":3,"sheets":["Kiểm kê Di chúc","Tài sản trong Di chúc","Trách nhiệm theo Di chúc"],"not_rendered":{"defined_names":1},"read":"whole","date_system":"1900"}

{"sheet":"Kiểm kê Di chúc","index":0,"n_rows":45,"n_cols":35,"rows_kept":45,"merged":[[0,1,0,30],[0,31,0,39],[1,1,5,39],[6,1,6,6],[6,7,6,39],[7,1,7,6],[7,7,7,39],[9,1,9,6],[9,7,9,39],[10,1,10,6],[10,7,10,39],[11,1,11,6],[11,7,11,20],[11,21,11,26],[11,27,11,30],[11,31,11,33],[11,34,11,39],[12,1,12,6],[12,7,12,20],[12,21,12,26],[13,1,13,6],[13,7,13,20],[13,21,13,26],[14,1,14,6],[14,7,14,20],[14,21,14,26],[15,1,15,6],[17,1,17,39],[18,1,18,6],[18,7,18,12],[18,13,18,15],[18,16,18,18],[18,19,18,26],[18,27,18,31],[18,32,18,39],[19,1,19,6],[19,7,19,12],[19,13,19,15],[19,16,19,18],[19,19,19,26],[19,27,19,31],[19,32,19,39],[20,1,20,6],[20,7,20,12],[20,13,20,15],[20,16,20,18],[20,19,20,26],[20,27,20,31],[20,32,20,39],[21,1,21,6],[21,7,21,12],[21,13,21,15],[21,16,21,18],[21,19,21,26],[21,27,21,31],[21,32,21,39],[22,1,22,6],[22,7,22,12],[22,13,22,15],[22,16,22,18],[22,19,22,26],[22,27,22,31],[22,32,22,39],[23,1,23,6],[23,7,23,12],[23,13,23,15],[23,16,23,18],[23,19,23,26],[23,27,23,31],[23,32,23,39],[25,1,25,39],[26,1,26,6],[26,7,26,12],[26,13,26,18],[26,19,26,26],[26,27,26,31],[26,32,26,39],[27,1,27,6],[27,7,27,12],[27,13,27,18],[27,19,27,26],[27,27,27,31],[27,32,27,39],[28,1,28,6],[28,7,28,12],[28,13,28,18],[28,19,28,26],[28,27,28,31],[28,32,28,39],[29,1,29,6],[29,7,29,12],[29,13,29,18],[29,19,29,26],[29,27,29,31],[29,32,29,39],[30,1,30,6],[30,7,30,12],[30,13,30,18],[30,19,30,26],[30,27,30,31],[30,32,30,39],[31,1,31,6],[31,7,31,12],[31,13,31,18],[31,19,31,26],[31,27,31,31],[31,32,31,39],[33,1,33,12],[33,14,33,39],[34,1,34,12],[34,14,34,21],[34,22,34,25],[34,26,34,33],[34,34,34,39],[35,2,35,12],[35,14,35,21],[35,22,35,25],[35,26,35,33],[35,34,35,39],[36,2,36,12],[36,14,36,21],[36,22,36,25],[36,26,36,33],[36,34,36,39],[37,2,37,12],[37,14,37,21],[37,22,37,25],[37,26,37,33],[37,34,37,39],[38,2,38,12],[38,14,38,21],[38,22,38,25],[38,26,38,33],[38,34,38,39],[39,2,39,12],[39,14,39,21],[39,22,39,25],[39,26,39,33],[39,34,39,39],[40,2,40,12],[40,14,40,21],[40,22,40,25],[40,26,40,33],[40,34,40,39],[41,2,41,12],[41,14,41,21],[41,22,41,25],[41,26,41,33],[41,34,41,39],[42,2,42,12],[42,14,42,21],[42,22,42,25],[42,26,42,33],[42,34,42,38],[43,2,43,12],[43,14,43,21],[43,22,43,25],[43,26,43,33],[43,34,43,39],[44,2,44,12],[44,14,44,21],[44,22,44,25],[44,26,44,33],[44,34,44,39]]}
[]
[null,"Kiểm kê Di chúc"]
[]
[]
[]
[]
[null,"Tên của (những) Người thừa hành",{"$nulls":5},"Allan Mattsson"]
[null,"Thông tin Liên hệ",{"$nulls":5},"4567 Main St Buffalo, NY 98052"]
[]
[null,"Tên của Người mất",{"$nulls":5},"August Bergquist"]
[null,"Địa chỉ Đường phố",{"$nulls":5},"6789 Main St"]
[null,"Thành phố",{"$nulls":5},"Buffalo",{"$nulls":13},"Tiểu bang",{"$nulls":5},"NY",{"$nulls":3},"Mã Zip",null,null,98052]
[null,"Số an sinh xã hội",{"$nulls":5},"AAA-GG-SSSS",{"$nulls":13},"Nghề nghiệp",{"$nulls":5},"Nha sĩ"]
[null,"Ngày Sinh",{"$nulls":5},"1965-12-08",{"$nulls":13},"Nơi sinh",{"$nulls":5},"NY"]
[null,"Ngày Tử",{"$nulls":5},{"$f":"TODAY()-3","v":"2022-05-15"},{"$nulls":13},"Nơi chết",{"$nulls":5},"NY"]
[null,"Thông tin Bổ sung"]
[]
[null,"  Vợ/chồng, Con cái và Những người Phụ thuộc khác"]
[null,"Tên",{"$nulls":5},"Mối quan hệ",{"$nulls":5},"Người phụ thuộc",null,null,"Tuổi",null,null,"Địa chỉ",{"$nulls":7},"Số điện thoại",{"$nulls":4},"Email"]
[null,"Mirjam Nilsson",{"$nulls":5},"Đại diện Cá nhân",{"$nulls":5},"Không",null,null,30]
[null,"Victoria Lindqvist",{"$nulls":5},"Vợ/Chồng",{"$nulls":5},"Có",null,null,35]
[null,"Alexander Martensson",{"$nulls":5},"Con",{"$nulls":5},"Có",null,null,12]
[]
[]
[]
[null,"Cố vấn Chuyên nghiệp"]
[null,"Loại Cố vấn",{"$nulls":5},"Người liên hệ",{"$nulls":5},"Công ty",{"$nulls":5},"Địa chỉ",{"$nulls":7},"Số điện thoại",{"$nulls":4},"Email"]
[null,"Kế toán viên"]
[null,"Luật sư/Công chứng viên"]
[null,"Khác"]
[]
[]
[]
[null,"  Danh sách kiểm tra chứng thực",{"$nulls":12},"  Kiểm kê Chứng thực di chúc"]
[null,"    Các mục trong Danh sách kiểm tra",{"$nulls":12},"Tài sản Chứng thực",{"$nulls":7},"Giá trị (₫)",{"$nulls":3},"Nợ phải trả theo Di chúc",{"$nulls":7},"Giá trị (₫)"]
[null,"✔","Di chúc sau cùng, Di chúc hoặc bất kỳ tài liệu nào khác",{"$nulls":11},{"$f":"'Tài sản trong Di chúc'!B12","v":"Tài khoản Ngân hàng"},{"$nulls":7},{"$f":"'Tài sản trong Di chúc'!G20","v":{"v":0,"d":"0.00 ₫"}},{"$nulls":3},{"$f":"'Trách nhiệm theo Di chúc'!B11","v":"Thế chấp"},{"$nulls":7},{"$f":"'Trách nhiệm theo Di chúc'!G18","v":{"v":0,"d":"0.00 ₫"}}]
[null,"✔","Hợp đồng cho thuê ký gửi an toàn và chìa khóa",{"$nulls":11},{"$f":"'Tài sản trong Di chúc'!B22","v":"Đầu tư Cá nhân"},{"$nulls":7},{"$f":"'Tài sản trong Di chúc'!G30","v":{"v":0,"d":"0.00 ₫"}},{"$nulls":3},{"$f":"'Trách nhiệm theo Di chúc'!B21","v":"Các khoản Vay Cá nhân và Dòng Tín dụng"},{"$nulls":7},{"$f":"'Trách nhiệm theo Di chúc'!G28","v":{"v":0,"d":"0.00 ₫"}}]
[null,"✖","Mật khẩu cho máy tính và tài khoản trực tuyến",{"$nulls":11},{"$f":"'Tài sản trong Di chúc'!B32","v":"Lợi ích Kinh doanh"},{"$nulls":7},{"$f":"'Tài sản trong Di chúc'!G40","v":{"v":0,"d":"0.00 ₫"}},{"$nulls":3},{"$f":"'Trách nhiệm theo Di chúc'!B31","v":"Lợi ích Kinh doanh"},{"$nulls":7},{"$f":"'Trách nhiệm theo Di chúc'!G38","v":{"v":0,"d":"0.00 ₫"}}]
[null,"✔","Thỏa thuận ủy thác",{"$nulls":11},{"$f":"'Tài sản trong Di chúc'!B42","v":"Bất động sản"},{"$nulls":7},{"$f":"'Tài sản trong Di chúc'!G50","v":{"v":0,"d":"0.00 ₫"}},{"$nulls":3},{"$f":"'Trách nhiệm theo Di chúc'!B41","v":"Thẻ Tín dụng"},{"$nulls":7},{"$f":"'Trách nhiệm theo Di chúc'!G48","v":{"v":0,"d":"0.00 ₫"}}]
[null,"✔","Chính sách bảo hiểm nhân thọ, sức khỏe/tai nạn và bảo hiểm",{"$nulls":11},{"$f":"'Tài sản trong Di chúc'!B52","v":"Kế hoạch Hưu trí"},{"$nulls":7},{"$f":"'Tài sản trong Di chúc'!G60","v":{"v":0,"d":"0.00 ₫"}},{"$nulls":3},{"$f":"'Trách nhiệm theo Di chúc'!B51","v":"Trách nhiệm khác"},{"$nulls":7},{"$f":"'Trách nhiệm theo Di chúc'!G58","v":{"v":0,"d":"0.00 ₫"}}]
[null,"✔","Báo cáo tài chính",{"$nulls":11},{"$f":"'Tài sản trong Di chúc'!B62","v":"Bảo hiểm"},{"$nulls":7},{"$f":"'Tài sản trong Di chúc'!G70","v":{"v":0,"d":"0.00 ₫"}}]
[null,"✔","Khai thuế thu nhập trong ba năm qua",{"$nulls":11},{"$f":"'Tài sản trong Di chúc'!B72","v":"Các khoản vay Tư nhân và Thế chấp"},{"$nulls":7},{"$f":"'Tài sản trong Di chúc'!G80","v":{"v":0,"d":"0.00 ₫"}}]
[null,"✔","Giấy khai sinh và khai tử",{"$nulls":11},{"$f":"'Tài sản trong Di chúc'!B82","v":"Lãi suất trong các Bất động sản và Quỹ tín thác khác"},{"$nulls":7},{"$f":"'Tài sản trong Di chúc'!G90","v":{"v":0,"d":"0.00 ₫"}}]
[null,"✖","Chứng thư, thế chấp và sao kê cho thuê",{"$nulls":11},{"$f":"'Tài sản trong Di chúc'!B92","v":"Hiệu ứng Cá nhân và các Tài sản Khác"},{"$nulls":7},{"$f":"'Tài sản trong Di chúc'!G100","v":{"v":0,"d":"0.00 ₫"}}]
[null,"☐","Hóa đơn và ghi chú chưa thanh toán",{"$nulls":11},"Tổng Tài sản",{"$nulls":7},{"$f":"'Tài sản trong Di chúc'!G10","v":{"v":0,"d":"0.00 ₫"}},{"$nulls":3},"Tổng Nợ phải trả",{"$nulls":7},{"$f":"SUM(AI36:AN44)","v":{"v":0,"d":"0.00 ₫"}}]

{"sheet":"Tài sản trong Di chúc","index":1,"n_rows":100,"n_cols":8,"rows_kept":100,"merged":[[0,1,0,7],[1,1,5,7],[6,1,7,7],[11,1,11,7],[12,1,12,7],[21,1,21,7],[22,1,22,7],[31,1,31,7],[32,1,32,7],[41,1,41,7],[42,1,42,7],[51,1,51,7],[52,1,52,7],[61,1,61,7],[62,1,62,7],[71,1,71,7],[72,1,72,7],[81,1,81,7],[82,1,82,7],[91,1,91,7],[92,1,92,7]]}
[]
[null,"Tài sản trong Di chúc"]
[]
[]
[]
[]
[null,"Sử dụng trang tính này để tạo bản kiểm kê tài sải chứng thực di chúc. Bạn sẽ cần xác định giá trị thị trường của mỗi tài sản di sản vào ngày mất. Xem xét tất cả các hồ sơ, bao gồm báo cáo tài chính, chính sách bảo hiểm và khai thuế để có được giá trị thị trường. Bạn cũng có thể cần phải thẩm định các mặt hàng cá nhân (tức là tác phẩm nghệ thuật, bộ sưu tập, đồ cổ, etc.). Đảm bảo bao gồm bất kỳ tài sản nước ngoài nào trong bản kiểm kê, chẳng hạn như bất động sản, chứng khoán hoặc lợi ích kinh doanh ở nước ngoài. Bạn có thể muốn được hỗ trợ chuyên nghiệp để có được giá trị thị trường chính xác cho các tài sản nước ngoài."]
[]
[]
[null,"Tổng Tài Sản",{"$nulls":4},{"$f":"tblBankAccounts[[#Totals],[Số dư ]]+tblPersonalInvestments[[#Totals],[Giá trị Thị trường]]+tblBusinessInterests[[#Totals],[Giá trị ]]+tblRealEstate[[#Totals],[Giá Thị trường]]+tblPensionPlans[[#Totals],[Giá trị ]]+tblInsurance[[#Totals],[Giá trị Tiền mặt ]]+tblMortgages[[#Totals],[Số dư còn nợ ]]+tblTrusts[[#Totals],[Số lượng phân bổ]]+tblOtherAssets[[#Totals],[Giá trị ]]","v":{"v":0,"d":"0.00 ₫"}}]
[]
[null,"Tài khoản Ngân hàng"]
[null,"Liệt kê tất cả các tài khoản ngân hàng bao gồm tiền mặt, séc du lịch, lệnh chuyển tiền và tài khoản có ngân hàng thương mại, ngân hàng tiết kiệm, công đoàn tín dụng, v.v. Bao gồm tất cả các tên được liệt kê trên tài khoản và giá trị tiền mặt thực tế đề cập đến đồng đô la chính xác và số tiền thay đổi tại thời điểm chết."]
[null,"Tổ chức Tài chính ","Địa chỉ","Điện thoại","Số tài khoản","Loại Tài khoản","Số dư ","Ghi chú"]
[]
[]
[]
[]
[]
[null,"Tổng",{"$nulls":4},{"$f":"SUBTOTAL(109,tblBankAccounts[[Số dư ]])","v":{"v":0,"d":"0.00 ₫"}}]
[]
[null,"Đầu tư Cá nhân"]
[null,"Liệt kê tài khoản tiền mặt, tài khoản ký quỹ, tài khoản tiết kiệm miễn thuế, kế hoạch tiết kiệm hưu trí đã đăng ký (RRSP), Quỹ thu nhập hưu trí đã đăng ký (RRIF), RRIF đã đăng ký, RRSP đã đăng ký, Quỹ thu nhập nhân thọ, Quỹ thu nhập hưu trí theo quy định, Tiết kiệm giáo dục đã đăng ký Kế hoạch, niên kim, v.v."]
[null,"Công ty","Địa chỉ","Điện thoại","Số tài khoản","Người thụ hưởng","Giá trị Thị trường","Ghi chú"]
[]
[]
[]
[]
[]
[null,"Tổng",{"$nulls":4},{"$f":"SUBTOTAL(109,tblPersonalInvestments[Giá trị Thị trường])","v":{"v":0,"d":"0.00 ₫"}}]
[]
[null,"Lợi ích Kinh doanh"]
[null,"Liệt kê tất cả các lợi ích kinh doanh bao gồm tư nhân độc quyền, hoạt động nghề nghiệp, tập đoàn, công ty hợp danh, công ty trách nhiệm hữu hạn và công ty hợp danh, liên doanh và các pháp nhân kinh doanh không giao dịch công khai thác. "]
[null,"Tên Doanh nghiệp","Địa chỉ","Điện thoại","Liên hệ","Loại","Giá trị ","Ghi chú"]
[]
[]
[]
[]
[]
[null,"Tổng",{"$nulls":4},{"$f":"SUBTOTAL(109,tblBusinessInterests[[Giá trị ]])","v":{"v":0,"d":"0.00 ₫"}}]
[]
[null,"Bất động sản"]
[null,"Liệt kê bất kỳ tài sản thực nào mà Người quá cố và/hoặc vợ/chồng/bạn đời còn sống của Người quá cố là chủ sở hữu, chủ sở hữu chung hoặc có lợi ích theo bất kỳ cách nào, bao gồm tài sản được mua để phát triển giải trí và cổ phiếu thời gian. Nhận bản sao của chứng thư. Cung cấp mô tả về bất động sản với địa chỉ thực của bất động sản đó. Liệt kê giá trị thị trường hợp lý của tài sản, dựa trên đánh giá gần đây nhất của cơ quan định thuế."]
[null,"Địa chỉ","Quyền sở hữu được giữ bởi","Điện thoại","Liên hệ","Giá Mua","Giá Thị trường","Ghi chú"]
[]
[]
[]
[]
[]
[null,"Tổng",{"$nulls":3},{"$f":"SUBTOTAL(109,tblRealEstate[Giá Mua])","v":{"v":0,"d":"0.00 ₫"}},{"$f":"SUBTOTAL(109,tblRealEstate[Giá Thị trường])","v":{"v":0,"d":"0.00 ₫"}}]
[]
[null,"Kế hoạch Hưu trí"]
[null,"Liệt kê các lợi ích đã xác định, các khoản tiền mua hoặc các khoản đóng góp đã xác định, DPSP hoặc RRSP nhóm, v.v."]
[null,"Công ty","Điện thoại","Loại Kế hoạch","Người thụ hưởng","Email","Giá trị ","Ghi chú"]
[]
[]
[]
[]
[]
[null,"Tổng",{"$nulls":4},{"$f":"SUBTOTAL(109,tblPensionPlans[[Giá trị ]])","v":{"v":0,"d":"0.00 ₫"}}]
[]
[null,"Bảo hiểm"]
[null,"Bao gồm các ủy thác, các hợp đồng bảo hiểm nhân thọ với người thụ hưởng được nêu tên và các tài khoản đầu tư được chuyển nhượng khi qua đời, dưới dạng tài sản không phải chứng thực. Nếu tòa án hỏi về những tài sản này, chấp hành viên có thể dễ dàng tham khảo danh sách tài sản không phải chứng thực di chúc và giải thích việc họ vắng mặt trong kiểm kê di chúc."]
[null,"Người phát hành","Số Hợp đồng","Điện thoại","Người thụ hưởng","Mệnh Giá ","Giá trị Tiền mặt ","Ghi chú"]
[]
[]
[]
[]
[]
[null,"Tổng",{"$nulls":3},{"$f":"SUBTOTAL(109,tblInsurance[[Mệnh Giá ]])","v":{"v":0,"d":"0.00 ₫"}},{"$f":"SUBTOTAL(109,tblInsurance[[Giá trị Tiền mặt ]])","v":{"v":0,"d":"0.00 ₫"}}]
[]
[null,"Các khoản vay Tư nhân và Thế chấp"]
[null,"Liệt kê các khoản vay và thế chấp tư nhân mà người quá cố là người cho vay."]
[null,"Tên Bên vay","Địa chỉ","Điện thoại","Loại","Số tiền Ban đầu","Số dư còn nợ ","Ghi chú"]
[]
[]
[]
[]
[]
[null,"Tổng",{"$nulls":3},{"$f":"SUBTOTAL(109,tblMortgages[Số tiền Ban đầu])","v":{"v":0,"d":"0.00 ₫"}},{"$f":"SUBTOTAL(109,tblMortgages[[Số dư còn nợ ]])","v":{"v":0,"d":"0.00 ₫"}}]
[]
[null,"Lãi suất trong các Bất động sản và Quỹ tín thác khác"]
[null,"Liệt kê các tài sản được đăng ký dưới tên của người đã qua đời được giữ thay mặt cho những người khác (ví dụ: tài sản do người đã qua đời giữ với tư cách là người được ủy thác hoặc tài sản được nắm giữ theo Giấy ủy quyền)."]
[null,"Tên của Bất động sản/Tín thác","Tên của Người thừa hành/Người được ủy thác","Điện thoại","Địa chỉ","Email","Số lượng phân bổ","Ghi chú"]
[]
[]
[]
[]
[]
[null,"Tổng",{"$nulls":4},{"$f":"SUBTOTAL(109,tblTrusts[Số lượng phân bổ])","v":{"v":0,"d":"0.00 ₫"}}]
[]
[null,"Hiệu ứng Cá nhân và các Tài sản Khác"]
[null,"Liệt kê tất cả các vật dụng cá nhân ví dụ như xe hơi, đồ trang sức, nghệ thuật, đồ cổ, đồ nội thất. Bao gồm các vật dụng có thể đã được giữ trong két sắt an toàn hoặc bảo quản an toàn."]
[null,"Mô tả Mục","Địa điểm","Điện thoại","Liên hệ","Người thụ hưởng","Giá trị ","Ghi chú"]
[]
[]
[]
[]
[]
[null,"Tổng",{"$nulls":4},{"$f":"SUBTOTAL(109,tblOtherAssets[[Giá trị ]])","v":{"v":0,"d":"0.00 ₫"}}]

{"sheet":"Trách nhiệm theo Di chúc","index":2,"n_rows":58,"n_cols":8,"rows_kept":58,"merged":[[0,1,0,7],[1,1,5,7],[6,1,6,7],[10,1,10,7],[20,1,20,7],[30,1,30,7],[40,1,40,7],[50,1,50,7]]}
[]
[null,"Trách nhiệm theo Di chúc"]
[]
[]
[]
[]
[null,"Sử dụng bảng tính này để nắm bắt chi tiết về các khoản nợ phải trả của di sản, cả trong và ngoài nước. Bạn sẽ yêu cầu định giá từng khoản nợ phải trả vào ngày mất."]
[]
[null,"Tổng Tài Sản",{"$nulls":4},{"$f":"SUM(G18,G28,G38,G48,G58)","v":{"v":0,"d":"0.00 ₫"}}]
[]
[null,"Thế chấp"]
[null,"Tổ chức Tài chính ","Địa chỉ","Điện thoại","Quyền sở hữu được Giữ bởi","Số tài khoản","Số dư ","Ghi chú"]
[]
[]
[]
[]
[]
[null,"Tổng",{"$nulls":4},{"$f":"SUBTOTAL(109,tblBankAccounts2[[Số dư ]])","v":{"v":0,"d":"0.00 ₫"}}]
[]
[]
[null,"Các khoản Vay Cá nhân và Dòng Tín dụng"]
[null,"Tổ chức Tài chính","Địa chỉ","Điện thoại"," Số tài khoản","Loại","Số dư ","Ghi chú"]
[]
[]
[]
[]
[]
[null,"Tổng",{"$nulls":4},{"$f":"SUBTOTAL(109,tblPersonalInvestments3[[Số dư ]])","v":{"v":0,"d":"0.00 ₫"}}]
[]
[]
[null,"Lợi ích Kinh doanh"]
[null,"Tên Doanh nghiệp","Địa chỉ"," Điện thoại"," Liên hệ","Loại","Giá trị ","Ghi chú"]
[]
[]
[]
[]
[]
[null,"Tổng",{"$nulls":4},{"$f":"SUBTOTAL(109,tblBusinessInterests4[[Giá trị ]])","v":{"v":0,"d":"0.00 ₫"}}]
[]
[]
[null,"Thẻ Tín dụng"]
[null,"Công ty Thẻ Tín dụng","Địa chỉ Công ty","Điện thoại","Số Thẻ","Ngày Hết hạn ","Số dư ","Ghi chú"]
[]
[]
[]
[]
[]
[null,"Tổng",{"$nulls":4},{"$f":"SUBTOTAL(109,tblRealEstate5[[Số dư ]])","v":{"v":0,"d":"0.00 ₫"}}]
[]
[]
[null,"Trách nhiệm khác"]
[null,"Mô tả Mục","Địa điểm","Điện thoại","Liên hệ","Người thụ hưởng","Giá trị ","Ghi chú"]
[]
[]
[]
[]
[]
[null,"Tổng",{"$nulls":4},{"$f":"SUBTOTAL(109,tblPensionPlans6[[Giá trị ]])","v":{"v":0,"d":"0.00 ₫"}}]